bitfinex-derivatives/quotes_ETHF0:USTF0_20250217
["timestamp","ask_amount","ask_price","bid_price","bid_amount"]
[1739815924239,0.73563,2718.4,2718.1,0.74120602]
[1739815924541,3.21328181,2718.7,2718.1,0.00551602]
[1739815924740,0.7356,2718.5,2718.3,0.73563]
[1739815924933,3.21328181,2718.7,2718.2,4.40744365]
[1739815925133,3.94884181,2718.7,2718.4,0.7356]
[1739815925334,3.21328181,2718.7,2718.4,0.7356]
[1739815925530,3.21328181,2718.7,2718.2,4.40744365]
[1739815925734,3.21328181,2718.7,2718.1,0.00551602]
[1739815925941,0.73563,2718.4,2718.2,0.73566]
[1739815926136,3.21328181,2718.7,2718.1,0.00551602]
[1739815926337,0.73568,2718.2,2718.1,0.00551602]
[1739815927741,1.83926,2718.2,2717.5,0.73586]
[1739815928039,3.2078,2718.1,2717.3,4.40744365]
[1739815928241,0.5368,2718.3,2717.6,6.24702365]
[1739815928437,0.73572,2718.1,2717.8,0.73576]
[1739815928637,0.73572,2718.1,2717.9,0.73575]
[1739815928838,3.2078,2718.4,2717.9,4.40744365]
[1739815929044,3.2078,2718.4,2718.0,0.5789]
[1739815929345,3.94343,2718.4,2718.0,0.5789]
[1739815929534,3.2078,2718.4,2717.7,0.00551602]
[1739815929735,0.73576,2718.0,2717.7,0.74131602]
[1739815929938,1.83913,2718.3,2717.7,0.74131602]
[1739815929939,0.73578,2717.8,2717.7,0.00551602]
[1739815930645,1.8392,2718.2,2717.7,0.00551602]
[1739815930948,0.73578,2717.8,2717.7,0.00551602]
[1739815931141,1.8392,2718.2,2717.7,0.01821883]
[1739815931142,3.2078,2718.0,2717.7,0.01821883]
[1739815931343,0.73578,2717.8,2717.7,0.01821883]
[1739815931835,0.73577,2717.9,2717.8,0.73578]
[1739815932034,0.73578,2717.8,2717.7,0.75401883]
[1739815932241,0.73578,2717.8,2717.7,0.01821883]
[1739815932945,0.73578,2717.8,2717.7,0.75402883]
[1739815933242,0.73578,2717.8,2717.7,0.01821883]
[1739815934849,3.2078,2718.0,2717.7,0.01821883]
[1739815935143,0.72307719,2717.8,2717.7,0.00551602]
[1739815936343,3.2078,2718.0,2717.2,3.2078]
[1739815936543,5.04742,2717.6,2717.1,0.5739]
[1739815936745,0.73595,2717.2,2717.1,0.5739]
[1739815936945,0.73595,2717.2,2717.1,1.30987]
[1739815937345,0.73595,2717.2,2717.1,0.5739]
[1739815937541,3.94365,2717.6,2717.4,0.73588]
[1739815937746,3.2078,2717.6,2717.1,0.5739]
[1739815938049,3.2078,2717.6,2717.5,0.73586]
[1739815938546,0.73589,2717.5,2717.4,0.73589]
[1739815938746,3.2078,2717.6,2717.3,0.7359]
[1739815939043,0.73588,2717.5,2717.4,0.73587]
[1739815939445,3.2078,2717.6,2717.5,0.73586]
[1739815939645,4.04617,2718.4,2717.5,3.2078]
[1739815939646,3.2078,2718.4,2717.5,3.2078]
[1739815939842,3.2078,2718.4,2718.3,0.73565]
[1739815940444,0.5505,2718.6,2718.3,7.61524365]
[1739815940649,0.5505,2718.6,2718.5,0.73559]
[1739815940838,0.00548181,2718.7,2718.6,0.73557]
[1739815941041,2.792,2719.4,2719.1,0.73542]
[1739815941243,2.792,2719.4,2718.5,1.83898]
[1739815941244,2.792,2719.4,2719.2,0.73539]
[1739815941437,0.73539,2719.3,2718.7,4.40744365]
[1739815941642,2.792,2719.4,2718.8,0.73549]
[1739815941847,0.73541,2719.2,2718.7,5.14296365]
[1739815942254,0.74092602,2719.2,2718.7,4.40744365]
[1739815942446,0.00551602,2719.2,2718.9,0.73547]
[1739815942647,0.74092602,2719.2,2718.7,4.40744365]
[1739815942940,0.00551602,2719.2,2719.1,0.73543]
[1739815943145,0.00551602,2719.2,2718.8,0.5546]
[1739815943349,0.74093602,2719.2,2718.8,0.5546]
[1739815943746,0.00551602,2719.2,2718.8,0.5546]
[1739815944152,0.74092602,2719.2,2718.8,1.2901]
[1739815944346,0.00551602,2719.2,2718.8,0.5546]
[1739815944546,0.00551602,2719.2,2719.0,0.73545]
[1739815945154,0.00551602,2719.2,2718.9,0.73547]
[1739815945346,0.00551602,2719.2,2718.7,4.40744365]
[1739815945751,0.74092602,2719.2,2718.8,0.73551]
[1739815945952,0.74092602,2719.2,2718.7,4.40744365]
[1739815946156,0.73547,2719.0,2718.7,4.40744365]
[1739815946459,0.00551602,2719.2,2718.8,0.7355]
[1739815946643,0.73546,2719.0,2718.7,5.14296365]
[1739815946849,0.73546,2719.0,2718.7,4.40744365]
[1739815947049,0.73548,2719.0,2718.7,5.14297365]
[1739815947249,0.73548,2719.0,2718.8,0.7355]
[1739815947549,0.73551,2718.9,2718.6,3.2078]
[1739815947954,3.2078,2719.0,2718.4,0.7356]
[1739815948156,1.26724,2718.8,2718.4,0.7356]
[1739815948464,0.5317,2718.8,2718.3,5.27132324]
[1739815948659,1.26722,2718.8,2718.3,5.27132324]
[1739815948850,0.5317,2718.8,2718.6,0.73555]
[1739815949052,3.2078,2719.0,2718.6,4.40744365]
[1739815949254,0.00551602,2719.2,2719.1,0.73543]
[1739815953059,6.73302,2719.9,2719.0,1.1536]
[1739815953253,0.546,2720.0,2719.3,3.2078]
[1739815953455,0.546,2720.0,2719.8,0.73523]
[1739815953855,3.2078,2720.2,2719.5,6.24576365]
[1739815954060,3.2078,2720.2,2719.6,1.83825]
[1739815954255,0.00551602,2720.1,2719.6,1.83825]
[1739815954452,0.00551602,2720.1,2720.0,0.73518]
[1739815956159,0.00551602,2720.1,2719.8,6.02e-06]
[1739815956160,9.21331602,2720.1,2719.8,6.02e-06]
[1739815956351,4.40744365,2719.9,2718.5,3.2078]
[1739815956659,5.9968,2719.8,2718.9,4.40744365]
[1739815956856,2.789,2719.7,2719.0,5.04645]
[1739815957052,2.789,2719.7,2719.1,0.5512]
[1739815957254,3.2078,2719.8,2719.6,0.73528]
[1739815957659,0.73522,2719.9,2719.7,0.73527]
[1739815957854,0.73521,2720.0,2719.7,0.73527]
[1739815958165,3.79031602,2720.1,2719.5,4.40744365]
[1739815958459,3.21331602,2720.1,2720.0,0.73519]
[1739815959359,0.00551602,2720.1,2720.0,0.73519]
[1739815960059,0.5336,2720.7,2720.6,0.73503]
[1739815960258,0.5336,2720.7,2720.3,7.61524365]
[1739815960458,0.5336,2720.7,2720.4,0.73506]
[1739815960852,0.5336,2720.7,2719.9,0.5526]
[1739815961057,3.9129,2720.6,2719.6,3.2078]
[1739815961258,3.91841602,2720.6,2720.0,0.00551602]
[1739815961458,0.7351,2720.4,2720.0,0.00551602]
[1739815962058,3.2078,2720.5,2720.0,0.00551602]
[1739815962263,0.73516,2720.1,2720.0,0.00551602]
[1739815963962,3.52316,2720.1,2720.0,0.00551602]
[1739815964157,0.73532,2719.6,2719.2,1.28799]
[1739815964356,0.73532,2719.6,2719.3,0.73537]
[1739815964766,3.2078,2719.8,2719.2,0.5526]
[1739815964960,0.73528,2719.7,2719.3,0.73536]
[1739815965260,3.2078,2719.8,2719.3,3.2078]
[1739815965465,3.2078,2719.8,2719.5,0.73531]
[1739815965861,3.2078,2719.8,2719.3,3.7452]
[1739815966163,3.2078,2719.8,2719.6,0.73528]
[1739815967361,3.94304,2719.8,2719.6,0.73528]
[1739815967665,3.2078,2719.8,2719.6,0.73528]
[1739815967861,0.73533,2719.5,2719.2,0.00551602]
[1739815968068,3.2078,2719.8,2719.3,0.73537]
[1739815968260,0.73532,2719.5,2719.3,0.73537]
[1739815968460,3.2078,2719.8,2719.2,0.00551602]
[1739815968660,0.73535,2719.4,2719.2,0.00551602]
[1739815969069,0.73534,2719.5,2719.2,0.74089602]
[1739815969561,3.2078,2719.8,2719.2,0.74089602]
[1739815969562,0.73535,2719.4,2719.2,0.74089602]
[1739815969766,0.73535,2719.5,2719.2,0.74089602]
[1739815970663,0.73535,2719.5,2719.3,0.73537]
[1739815970865,0.73535,2719.4,2719.2,0.00551602]
[1739815971255,0.73535,2719.4,2719.2,0.74091602]
[1739815971654,0.73534,2719.5,2719.3,0.73537]
[1739815971868,0.73535,2719.4,2719.3,0.73537]
[1739815972463,0.73535,2719.5,2719.3,0.73536]
[1739815972670,0.73535,2719.4,2719.2,0.00551602]
[1739815972863,0.73538,2719.3,2719.2,0.00551602]
[1739815973064,3.2078,2719.5,2719.2,0.00551602]
[1739815973268,0.73538,2719.3,2719.2,0.00551602]
[1739815973865,0.73538,2719.3,2719.2,0.74091602]
[1739815974060,3.7719,2719.5,2719.2,0.00551602]
[1739815974268,3.7719,2719.5,2719.4,0.73535]
[1739815974474,3.2078,2719.5,2719.4,0.73535]
[1739815974963,2.787,2719.6,2719.5,0.73532]
[1739815975470,0.73533,2719.5,2719.4,0.73534]
[1739815975764,0.73532,2719.6,2719.2,3.21331602]
[1739815975962,2.787,2719.8,2719.2,3.21331602]
[1739815976169,3.52226,2719.8,2719.5,0.7353]
[1739815976357,6.5589,2719.9,2719.2,6.17179602]
[1739815976558,0.5641,2719.9,2719.8,0.73524]
[1739815976759,3.2078,2720.5,2719.7,4.40744365]
[1739815977063,0.73508,2720.4,2720.2,0.73512]
[1739815977465,6.5341,2720.5,2720.1,0.73515]
[1739815977466,0.73511,2720.3,2720.1,0.73515]
[1739815977966,0.73511,2720.3,2720.2,0.73513]
[1739815978370,0.73511,2720.3,2720.1,0.73515]
[1739815978558,0.73511,2720.3,2719.8,3.2078]
[1739815978862,0.73509,2720.4,2720.2,0.73511]
[1739815979062,0.73512,2720.3,2720.1,0.73515]
[1739815980267,3.7471,2720.5,2719.8,3.2078]
[1739815980666,0.73509,2720.4,2720.2,0.73511]
[1739815980975,0.5393,2720.5,2720.4,0.73508]
[1739815981272,0.00551602,2720.6,2720.5,0.73505]
[1739815984872,0.00551602,2720.6,2720.3,3.2078]
[1739815985072,0.00551602,2720.6,2720.2,0.5438]
[1739815985272,0.74056602,2720.6,2720.4,0.73507]
[1739815985473,0.74055602,2720.6,2720.4,0.73507]
[1739815985673,0.00551602,2720.6,2720.2,0.5438]
[1739815985877,0.00551602,2720.6,2720.5,0.73505]
[1739815986276,0.00551602,2720.6,2720.2,0.5438]
[1739815986481,5.99931602,2720.6,2720.1,0.73514]
[1739815986672,5.99931602,2720.6,2719.9,0.5642]
[1739815987176,5.99931602,2720.6,2720.0,6.71558391]
[1739815987376,5.99931602,2720.6,2720.5,0.73505]
[1739815987568,5.99931602,2720.6,2720.0,6.71558391]
[1739815987768,5.99931602,2720.6,2720.1,0.73515]
[1739815987769,0.73511,2720.3,2720.1,0.73515]
[1739815987969,0.73515,2720.2,2720.0,0.73519]
[1739815988170,0.73512,2720.3,2720.2,0.73513]
[1739815988474,0.5812,2720.4,2719.9,1.83803]
[1739815988777,0.5812,2720.4,2720.3,0.73511]
[1739815989475,1.31628,2720.4,2720.3,0.73511]
[1739815990073,0.73512,2720.3,2720.2,0.73512]
[1739815990272,0.73514,2720.2,2720.1,0.73515]
[1739815990769,0.73517,2720.1,2720.0,0.73516]
[1739815990969,0.5812,2720.4,2719.7,7.56453909]
[1739815991169,0.73513,2720.3,2720.1,0.73515]
[1739815991379,1.31629,2720.4,2720.2,0.73513]
[1739815991871,0.73511,2720.3,2719.8,1.83811]
[1739815992176,0.73511,2720.3,2720.1,0.73514]
[1739815992380,0.5812,2720.4,2720.1,0.73514]
[1739815992571,0.73513,2720.2,2720.1,0.73514]
[1739815992876,0.73512,2720.3,2720.2,0.73513]
[1739815993380,0.73513,2720.2,2720.1,0.73514]
[1739815993579,0.5812,2720.4,2719.8,1.83811]
[1739815993775,0.5812,2720.4,2720.1,0.73516]
[1739815993776,0.73516,2720.2,2720.1,0.73516]
[1739815993977,0.5812,2720.4,2719.8,1.83811]
[1739815994179,1.31629,2720.4,2719.9,1.83803]
[1739815994373,0.5812,2720.4,2720.3,0.73511]
[1739815995480,1.31629,2720.4,2720.3,0.73511]
[1739815995674,0.5812,2720.4,2720.3,0.73511]
[1739815996078,5.99931602,2720.6,2720.1,1.8379]
[1739815996375,5.99931602,2720.6,2720.0,7.27088391]
[1739815996376,3.21331602,2720.6,2720.5,0.73505]
[1739815997777,0.00551602,2720.6,2720.5,0.73505]
[1739816002288,3.152,2721.3,2720.5,6.0]
[1739816002289,3.2078,2721.3,2720.5,6.0]
[1739816002485,20.377,2723.1,2721.2,6.71558391]
[1739816002486,3.2078,2721.7,2721.2,6.71558391]
[1739816002789,3.2078,2721.7,2721.6,4.24254391]
[1739816003281,2.784,2722.0,2721.6,3.50778391]
[1739816003485,3.2078,2722.3,2721.9,3.50778391]
[1739816003689,5.9918,2722.3,2722.1,0.73461]
[1739816003980,6.72638,2722.3,2721.9,3.50778391]
[1739816004187,3.2078,2722.3,2721.9,3.50778391]
[1739816004389,3.2078,2722.3,2722.2,0.73459]
[1739816004588,3.2078,2722.3,2722.2,4.24237391]
[1739816004887,0.00551602,2722.4,2722.2,3.50778391]
[1739816005092,0.00551602,2722.4,2722.3,0.73457]
[1739816007895,3.2078,2722.9,2722.6,0.73447]
[1739816008086,3.2078,2722.9,2722.2,6.71558391]
[1739816008289,3.2078,2722.9,2722.1,3.3424]
[1739816008290,3.2078,2723.2,2722.8,3.50778391]
[1739816008899,3.2078,2723.2,2723.0,0.73437]
[1739816009395,3.2078,2723.6,2723.5,0.73424]
[1739816009991,3.2078,2723.6,2723.4,3.50778391]
[1739816010191,3.2078,2723.6,2723.4,4.24203391]
[1739816010497,3.2078,2723.6,2723.4,4.24204391]
[1739816010692,3.2078,2723.6,2723.0,4.3836397]
[1739816010992,3.2078,2723.6,2722.9,1.29039]
[1739816010993,3.9421,2723.3,2722.9,1.29039]
[1739816011195,3.94211,2723.3,2723.0,0.73438]
[1739816011394,3.94211,2723.3,2722.8,0.00551602]
[1739816011395,3.2078,2723.3,2722.8,0.00551602]
[1739816012096,0.7344,2723.0,2722.8,0.00551602]
[1739816012398,0.73441,2722.9,2722.8,0.00551602]
[1739816013697,0.73458,2722.3,2721.9,0.73466]
[1739816014096,5.9888,2722.5,2721.8,4.3836397]
[1739816014494,4.9620397,2723.1,2721.6,0.30289522]
[1739816014495,3.2078,2722.8,2722.6,0.73447]
[1739816014803,5.9888,2722.8,2722.6,0.73447]
[1739816015295,5.9888,2722.8,2722.4,4.3836397]
[1739816015496,5.9888,2722.8,2722.6,0.73448]
[1739816015692,5.9888,2722.8,2722.0,3.2078]
[1739816015891,3.2078,2722.5,2721.9,0.00551602]
[1739816016096,0.73453,2722.5,2722.1,0.73461]
[1739816016296,0.73453,2722.5,2721.9,3.21331602]
[1739816016491,2.78,2722.7,2722.4,0.73452]
[1739816016691,0.73452,2722.5,2722.1,0.73461]
[1739816016891,0.73452,2722.5,2721.9,3.21331602]
[1739816016892,3.2078,2722.5,2721.9,0.00551602]
[1739816017092,0.73457,2722.3,2721.9,0.00551602]
[1739816017294,1.0806,2722.4,2722.0,0.73464]
[1739816017494,1.81516,2722.4,2722.1,0.73461]
[1739816017696,2.78,2722.7,2722.4,0.73452]
[1739816017697,0.73447,2722.7,2722.4,0.73452]
[1739816017903,2.78,2722.7,2722.4,0.73452]
[1739816018094,2.78,2722.7,2722.0,6.7923197]
[1739816018095,3.2078,2722.8,2722.0,6.7923197]
[1739816018294,3.2078,2722.8,2722.5,0.7345]
[1739816018295,5.9878,2722.8,2722.5,0.7345]
[1739816018497,0.73447,2722.7,2722.5,0.7345]
[1739816018901,5.9878,2722.8,2722.0,4.9557397]
[1739816019102,3.2078,2722.8,2722.3,4.3836397]
[1739816019902,0.73446,2722.7,2722.5,0.7345]
[1739816020103,3.2078,2722.8,2722.3,4.3836397]
[1739816020801,0.73446,2722.7,2722.4,0.73452]
[1739816021003,0.73449,2722.6,2722.3,4.3836397]
[1739816021196,0.73449,2722.6,2722.3,5.1181897]
[1739816021405,3.2078,2722.8,2722.3,4.3836397]
[1739816021601,3.2078,2722.4,2721.9,0.00551602]
[1739816021794,3.2078,2722.0,2721.9,0.00551602]
[1739816021998,3.2078,2722.0,2721.9,0.74019602]
[1739816022300,3.2078,2722.0,2721.9,0.00551602]
[1739816022499,3.94245,2722.0,2721.9,0.00551602]
[1739816022806,3.2078,2722.0,2721.9,0.00551602]
[1739816023397,3.94245,2722.0,2721.9,0.00551602]
[1739816023600,3.2078,2722.0,2721.9,0.00551602]
[1739816024702,3.2078,2722.0,2721.9,0.74019602]
[1739816024902,3.2078,2722.0,2721.9,0.00551602]
[1739816026405,3.94245,2722.0,2721.9,0.00551602]
[1739816027201,3.2078,2722.0,2721.9,0.74019602]
[1739816030110,3.2078,2722.0,2721.9,1.31089602]
[1739816030511,3.2078,2722.4,2721.9,6.57621602]
[1739816030801,4.1111,2723.3,2722.4,1.83636]
[1739816031110,0.73990602,2723.0,2722.8,0.73443]
[1739816031503,0.00551602,2723.0,2722.4,3.2078]
[1739816031703,0.00551602,2723.0,2722.9,0.73441]
[1739816032504,4.06834,2723.6,2722.9,5.1180497]
[1739816032505,0.5359,2723.5,2722.9,5.1180497]
[1739816032807,3.2078,2723.8,2723.6,0.73421]
[1739816033001,3.2078,2723.8,2723.3,3.2078]
[1739816033206,1.4755,2724.5,2723.6,3.2078]
[1739816033207,1.1075,2724.5,2723.6,3.2078]
[1739816033609,1.1075,2724.5,2723.6,3.752]
[1739816033610,4.6825,2724.5,2723.6,3.752]
[1739816033812,4.3153,2724.5,2723.8,0.00551602]
[1739816034012,0.73403,2724.3,2723.8,0.00551602]
[1739816034211,4.6825,2724.5,2723.9,0.73413]
[1739816034409,0.73403,2724.4,2723.9,0.73412]
[1739816034608,0.73403,2724.3,2723.8,0.73965602]
[1739816034909,0.73403,2724.3,2723.8,0.00551602]
[1739816035216,4.3153,2724.5,2724.1,0.73408]
[1739816035607,0.5348,2724.7,2724.4,0.734]
[1739816036111,0.5348,2725.4,2724.6,3.2078]
[1739816036308,0.73383,2725.1,2724.6,3.94174]
[1739816036613,3.2078,2725.0,2724.6,3.2078]
[1739816036807,0.73388,2724.9,2724.6,3.2078]
[1739816037005,3.2078,2725.0,2724.6,3.2078]
[1739816037206,3.2078,2724.7,2724.1,3.2078]
[1739816037409,3.2078,2724.7,2724.1,3.94188]
[1739816037608,3.2078,2724.7,2724.3,0.73402]
[1739816038001,3.2078,2724.7,2724.1,7.5914397]
[1739816038002,3.94174,2724.7,2724.2,0.73404]
[1739816038203,3.94173,2724.7,2724.1,7.5914397]
[1739816038608,0.73395,2724.6,2724.2,0.73405]
[1739816038809,0.73395,2724.6,2724.1,7.5914397]
[1739816039008,0.73395,2724.6,2724.1,8.3255097]
[1739816039216,0.73395,2724.6,2724.2,0.73404]
[1739816039513,0.73396,2724.6,2724.1,8.3255097]
[1739816039911,3.2078,2724.7,2724.1,7.5914397]
[1739816040213,3.2078,2724.7,2724.2,0.73405]
[1739816040416,3.2078,2724.7,2724.1,3.2078]
[1739816040617,0.5823,2724.6,2724.1,3.2078]
[1739816040914,3.2078,2724.4,2723.8,0.00551602]
[1739816041111,0.73414,2723.9,2723.8,0.00551602]
[1739816041314,3.51114,2723.9,2723.8,0.00551602]
[1739816041912,4.09344,2723.9,2723.8,0.00551602]
[1739816043120,10.09344,2723.9,2723.8,0.00551602]
[1739816043714,1.83549,2723.7,2722.7,20.364]
[1739816043914,0.73435,2723.1,2722.7,0.73444]
[1739816044112,2.777,2723.2,2722.6,3.2078]
[1739816044307,5.9848,2723.2,2722.6,3.2078]
[1739816044511,0.73445,2722.8,2722.6,3.2078]
[1739816044723,0.73445,2722.8,2722.6,3.2133055]
[1739816045117,0.368,2723.1,2722.6,3.2133055]
[1739816045421,0.73442,2722.9,2722.6,3.2133055]
[1739816045611,0.73446,2722.7,2722.6,0.0055055]
[1739816045811,3.51146,2722.7,2722.6,0.0055055]
[1739816046007,0.00548092,2723.2,2722.6,0.0055055]
[1739816046207,3.2078,2723.0,2722.6,0.0055055]
[1739816046412,0.73442,2722.9,2722.6,0.0055055]
[1739816046919,3.2078,2723.0,2722.6,0.0055055]
[1739816047109,0.00548092,2723.2,2722.6,7.5969452]
[1739816047417,0.00548092,2723.2,2723.1,0.73435]
[1739816048217,0.00548092,2723.2,2723.0,0.5348]
[1739816048418,0.00548092,2723.2,2723.1,0.73435]
[1739816053219,0.00548092,2723.2,2722.9,3.2078]
[1739816053421,0.00548092,2723.2,2722.7,0.73445]
[1739816053624,0.54008092,2723.2,2722.6,4.3891452]
[1739816053923,0.54008092,2723.2,2722.9,0.7344]
[1739816054124,0.54008092,2723.2,2723.1,0.73435]
[1739816056023,0.00548092,2723.2,2723.1,0.73435]
[1739816061535,0.5636,2724.0,2723.9,0.73414]
[1739816061728,1.31601,2724.4,2724.2,0.73403]
[1739816062028,3.50999,2724.5,2724.3,0.73402]
[1739816062324,0.73403,2724.3,2724.2,0.73405]
[1739816062522,1.1086,2724.6,2724.5,0.73398]
[1739816062728,3.8846,2724.6,2724.5,0.73398]
[1739816063127,1.1086,2724.6,2724.5,0.73398]
[1739816064426,0.73399,2724.5,2724.3,0.73401]
[1739816064629,0.73401,2724.4,2724.1,0.0055055]
[1739816064823,3.2078,2724.4,2724.1,0.0055055]
[1739816065129,0.73406,2724.2,2724.1,0.0055055]
[1739816066031,0.73416,2723.9,2723.6,3.942]
[1739816066227,0.73419,2723.7,2723.6,3.2078]
[1739816066633,4.07929,2723.8,2723.6,3.94201]
[1739816066931,3.3451,2723.8,2723.7,0.73419]
[1739816068331,3.3451,2723.8,2723.6,3.2078]
[1739816068332,0.0055055,2724.0,2723.6,7.5914397]
[1739816068534,0.0055055,2724.0,2723.9,0.73414]
[1739816069533,0.0055055,2724.0,2723.9,8.3255797]
[1739816071933,0.0055055,2724.0,2723.9,0.73414]
[1739816072128,0.0055055,2724.0,2723.6,3.2078]
[1739816072532,0.0055055,2724.0,2723.9,0.73414]
[1739816075430,0.0055055,2724.0,2723.7,0.73418]
[1739816075431,0.7396455,2724.0,2723.7,0.73418]
[1739816075732,0.7396455,2724.0,2723.8,0.73414]
[1739816075733,0.7396155,2724.0,2723.8,0.73414]
[1739816075937,0.0055055,2724.0,2723.9,0.73414]
[1739816076332,0.0055055,2724.0,2723.6,7.5914397]
[1739816076530,0.0055055,2724.0,2723.9,0.73414]
[1739816076729,0.0055055,2724.0,2723.9,3.94194]
[1739816079838,0.0055055,2724.0,2723.9,8.3255797]
[1739816080040,3.2078,2724.6,2723.9,8.3255797]
[1739816080041,0.5803,2724.6,2723.9,7.5914397]
[1739816080347,0.5803,2724.6,2723.7,3.328]
[1739816080348,0.5803,2724.6,2724.3,3.2078]
[1739816080645,1.31426,2724.6,2724.4,0.73399]
[1739816081043,0.5803,2724.6,2724.5,0.73398]
[1739816082337,0.5413,2725.0,2724.9,0.73387]
[1739816082538,0.5766,2725.3,2725.2,0.73379]
[1739816082758,3.2078,2725.7,2725.2,4.3836397]
[1739816082941,3.2078,2725.7,2725.5,0.7337]
[1739816083143,0.5332,2725.9,2725.6,0.73366]
[1739816083337,0.5332,2725.9,2725.5,7.5914397]
[1739816083641,0.3672,2726.5,2726.1,0.73352]
[1739816083944,0.73344,2726.5,2726.0,0.73355]
[1739816084142,0.9004,2726.6,2726.0,0.73355]
[1739816084340,1.63381,2726.6,2725.8,7.5914397]
[1739816084534,1.63381,2726.6,2726.1,0.73354]
[1739816084740,0.9004,2726.6,2725.8,7.5914397]
[1739816085043,0.9004,2726.6,2726.2,0.73351]
[1739816085238,0.9004,2726.6,2726.1,7.5914397]
[1739816085445,0.9004,2726.6,2726.3,0.73348]
[1739816085644,0.73345,2726.5,2726.1,7.5914397]
[1739816085846,1.63382,2726.6,2726.2,0.73352]
[1739816086033,1.63383,2726.6,2726.2,0.73352]
[1739816086242,1.63382,2726.6,2726.1,8.3249697]
[1739816086441,0.5332,2726.6,2726.2,0.73351]
[1739816086637,3.2078,2726.7,2726.1,3.2078]
[1739816086844,0.73321,2727.4,2726.6,3.2078]
[1739816087140,3.575,2727.5,2726.8,4.3836397]
[1739816087345,0.73321,2727.4,2726.8,4.3836397]
[1739816087549,0.73321,2727.4,2726.8,5.1169797]
[1739816087746,3.575,2727.5,2726.8,4.3836397]
[1739816088046,3.2078,2727.5,2726.9,3.94111]
[1739816088244,3.2078,2727.5,2726.9,3.2078]
[1739816088442,3.94098,2727.5,2727.0,0.73328]
[1739816089043,3.2078,2727.5,2726.9,3.2078]
[1739816089347,0.3672,2727.7,2727.1,4.3836397]
[1739816089547,0.73314,2727.6,2727.1,4.3836397]
[1739816089845,0.3672,2727.7,2727.1,4.3836397]
[1739816090043,3.2078,2727.2,2726.7,0.0055055]
[1739816090255,0.5383,2727.1,2726.7,0.0055055]
[1739816090544,0.5383,2727.1,2726.7,4.3891452]
[1739816090749,0.5383,2727.1,2726.7,0.0055055]
[1739816090947,3.2078,2726.9,2726.7,0.0055055]
[1739816091253,4.06966,2726.8,2726.1,0.29937001]
[1739816091547,0.73352,2726.2,2725.6,7.5914397]
[1739816091844,0.5368,2726.1,2725.6,7.5914397]
[1739816092045,0.73359,2726.0,2725.6,7.5914397]
[1739816092238,1.0918,2726.1,2725.6,3.2078]
[1739816092438,0.7336,2725.9,2725.3,8.7295397]
[1739816092643,0.73332,2727.0,2725.8,4.3836397]
[1739816092947,4.2996,2727.5,2726.6,3.2078]
[1739816093144,0.7333,2727.1,2726.6,3.2078]
[1739816093339,0.73332,2727.0,2726.6,3.2078]
[1739816093536,0.73329,2727.1,2726.6,3.2078]
[1739816093739,0.3672,2727.7,2726.9,3.2078]
[1739816093937,0.73327,2727.2,2726.9,3.2078]
[1739816094146,3.2078,2727.3,2727.0,0.0055055]
[1739816094444,0.73328,2727.1,2727.0,0.0055055]
[1739816094639,3.2078,2727.3,2727.0,0.0055055]
[1739816094948,3.2078,2728.4,2727.2,3.2078]
[1739816095142,3.2078,2727.6,2727.0,0.0055055]
[1739816095451,3.2078,2727.5,2727.0,0.0055055]
[1739816095647,0.73324,2727.3,2727.0,0.0055055]
[1739816095844,0.73327,2727.2,2727.0,0.0055055]
[1739816096048,0.73328,2727.1,2727.0,0.0055055]
[1739816096442,0.7331,2727.8,2727.2,0.73323]
[1739816096644,3.2078,2728.0,2727.4,3.2078]
[1739816096843,0.73317,2727.5,2727.1,3.2078]
[1739816097050,2.77,2727.8,2727.1,3.2078]
[1739816097245,0.73326,2727.2,2727.0,0.0055055]
[1739816097550,0.73316,2727.6,2727.1,3.2078]
[1739816097756,3.2078,2727.7,2727.1,3.2078]
[1739816097948,3.2078,2727.7,2727.2,0.73323]
[1739816098148,3.2078,2727.7,2727.2,4.3836397]
[1739816098350,0.73313,2727.7,2727.2,5.1168597]
[1739816098648,1.8324,2728.3,2727.4,3.2078]
[1739816098649,2.77,2727.9,2727.4,3.2078]
[1739816098952,6.5267,2727.8,2727.1,3.2078]
[1739816099148,0.73323,2727.3,2727.1,3.2078]
[1739816099345,2.77,2727.9,2727.2,4.3836397]
[1739816099542,3.50308,2727.9,2727.4,3.2078]
[1739816099751,0.73313,2727.7,2727.4,3.2078]
[1739816100146,0.5489,2727.8,2727.4,3.2078]
[1739816100453,2.769,2727.9,2727.4,3.2078]
[1739816100655,0.73316,2727.6,2727.4,3.2078]
[1739816101155,2.769,2727.7,2727.4,3.2078]
[1739816101352,2.769,2727.7,2727.0,0.0055055]
[1739816101353,0.73323,2727.3,2727.1,3.2078]
[1739816101546,2.769,2727.2,2727.0,0.0055055]
[1739816101751,1.29988,2727.1,2727.0,0.0055055]
[1739816101950,2.44028,2727.1,2727.0,0.0055055]
[1739816103552,8.44028,2727.1,2727.0,0.0055055]
[1739816103743,8.44028,2727.1,2725.8,1.111]
[1739816103744,0.7335,2726.3,2726.0,4.3836397]
[1739816104056,2.769,2726.5,2726.0,4.3836397]
[1739816104252,3.50246,2726.5,2726.2,3.2078]
[1739816104447,0.73349,2726.4,2726.2,3.2078]
[1739816104656,2.769,2726.5,2726.2,3.2078]
[1739816104956,0.73349,2726.3,2726.2,3.2078]
[1739816105151,0.5412,2726.4,2726.0,0.0055055]
[1739816105354,0.73354,2726.1,2726.0,0.0055055]
[1739816106244,3.2078,2726.3,2725.4,3.2078]
[1739816106449,0.7337,2725.6,2725.4,3.2078]
[1739816106650,1.83384,2726.2,2725.4,3.2078]
[1739816106651,2.769,2725.8,2725.4,3.2078]
[1739816106948,0.73366,2725.7,2725.4,3.2078]
[1739816107350,0.73367,2725.7,2725.4,3.2078]
[1739816107552,2.769,2725.8,2725.4,3.2078]